Cogmind - Beta 12 @@@ ROGUE MODE // 2023.04.18 @ 19:33:00 Player: Decinym Result: Destroyed by Executioner with Backup Laser VII Performance ------------- Evolutions (7) 3500 Regions Visited (24) 4800 Robots Destroyed (430) 2150 Value Destroyed (20310) 20310 Prototype IDs (60) 1200 Alien Tech Used (0) 0 Bonus (16301) 16301 TOTAL SCORE: 48261 Bonus ------- Triggered High Security 1000 High Alert Combat Kills 9588 Follower Combat Kills 3650 Entered Garrisons 600 Network Hubs Disabled 200 Aligned with FarCom 300 Met Imprinter 300 Was Imprinted 300 Built Enhanced Grunts 300 A7 Reached Mainframe 300 Met R17 at Cetus 500 Scanned by Researcher 500 Friendly Fire -1237 Cogmind --------- Core Integrity 0/1300 Matter 16/300 Energy 93/100 System Corruption 23% Temperature Cool (9) Movement Treading (250) Ox1 Location -3/Research Parts ------- > --- POWER (2) -------- (None) > --- PROPULSION (6) --- Armored Medium Treads Armored Medium Treads Armored Medium Treads > --- UTILITY (11) ----- Experimental Heat Sink Huge Storage Unit > --- WEAPON (2) ------- Makeshift Hammer > --- INVENTORY (25) --- Armored Medium Treads Experimental Coolant Injector Advanced Energy Well (500) Advanced Signal Interpreter Advanced Particle Charger Advanced System Restoration Module Latent Energy Streamer Improved Plasma Cutter Peak State ------------ > --- POWER ------------ Micro Fission Core Quantum Reactor > --- PROPULSION ------- Armored Medium Treads Armored Medium Treads Armored Medium Treads Heavy Siege Treads Biometal Medium Treads > --- UTILITY ---------- Experimental Heat Sink Huge Storage Unit Long-range Sensor Array Experimental Signal Interpreter Modified TNC Experimental Targeting Computer Advanced Transmission Jammer Makeshift Cloaking Device Improved Utility Shielding Centrium Medium Armor Plating Medium Regenerative Plating > --- WEAPON ----------- Long-range Phase Cannon AD-0RF's Magmablaster > --- INVENTORY -------- Light Particle Reactor Armored Medium Treads Armored Medium Treads Armored Medium Treads Armored Medium Treads Armored Medium Treads Armored Medium Treads Advanced Cooling System Experimental Coolant Injector Advanced Energy Well Advanced Energy Well Zionite Biocell Advanced Signal Interpreter Precision Matter Filter Advanced Particle Charger Centrium Medium Armor Plating Advanced Shield Generator Advanced System Restoration Module Quantum Rifle Latent Energy Streamer Neutron Missile Launcher Neutron Missile Launcher Neutron Missile Launcher Improved Plasma Cutter Makeshift Hammer [Rating: 155] Favorites ----------- Power Quantum Reactor Engine Improved Ion Engine Power Core Neutrino Core Reactor Quantum Reactor Propulsion Armored Medium Treads Treads Armored Medium Treads Leg Aluminum Leg Wheel Armored Wheel Utility Huge Storage Unit Device Experimental Heat Sink Storage Huge Storage Unit Processor Modified TNC Hackware Advanced Hacking Suite Protection Improved Utility Shielding Weapon Advanced KE Penetrator Energy Gun Improved Spread Laser Energy Cannon Ion Cannon Ballistic Gun Advanced KE Penetrator Ballistic Cannon Improved Light Cannon Launcher Improved Proton Missile Launcher Special Weapon AD-0RF's Magmablaster Impact Weapon Makeshift Hammer Slashing Weapon Makeshift Sword Build | -11 -10 -10 -9 -9 -9 -8 -8 -8 -7 -7 -7 -7 -6 -6 -6 -6 -5 -5 -5 -5 -5 -5 -4 -3 ------- Run | Jun Mat Min Mat Min Exi Min Mat Gar Fac Gar Fac Gar Fac Low Low Zio Pro Fac Ext Cet Arc Hub Fac Res Slots Evolved 14 | . . . 2 . . . 2 . 2 . . . 2 . . . . 2 . . . . 2 2 Power 1 | . . . . . . . . . . . . . 1 . . . . . . . . . . . Propulsion 4 | . . . 1 . . . 1 . . . . . . . . . . 1 . . . . 1 . Utility 9 | . . . 1 . . . 1 . 2 . . . 1 . . . . 1 . . . . 1 2 Weapon . | . . . . . . . . . . . . . . . . . . . . . . . . . Parts Attached 469 | . 2 9 24 4 33 . 26 23 4 18 3 20 63 15 4 17 8 8 19 20 13 40 40 56 Power 35 | . . 2 3 . 4 . 2 . . . . . 8 3 . 1 . 1 . 3 1 . 2 5 Engine 9 | . . 2 3 . . . . . . . . . 3 1 . . . . . . . . . . Core 14 | . . . . . 3 . 1 . . . . . 4 2 . 1 . 1 . . . . . 2 Reactor 12 | . . . . . 1 . 1 . . . . . 1 . . . . . . 3 1 . 2 3 Propulsion 81 | . . 1 10 3 6 . 5 4 . 7 1 2 14 4 . . . 2 3 1 . 3 2 13 Treads 55 | . . . 1 3 6 . 2 4 . 3 . 2 6 4 . . . 2 3 1 . 3 2 13 Leg 7 | . . 1 5 . . . . . . . . . 1 . . . . . . . . . . . Wheel 19 | . . . 4 . . . 3 . . 4 1 . 7 . . . . . . . . . . . Hover . | . . . . . . . . . . . . . . . . . . . . . . . . . Flight . | . . . . . . . . . . . . . . . . . . . . . . . . . Utility 158 | . 2 2 3 1 12 . 10 4 4 2 2 . 13 1 3 11 2 3 10 10 12 14 18 19 Device 83 | . . 1 1 . 5 . 3 1 2 1 1 . 6 1 1 8 2 2 5 6 8 7 13 9 Storage 5 | . 1 1 1 . . . . . . . . . . . . . . . 1 1 . . . . Processor 11 | . . . . . 1 . 3 . 1 1 . . 1 . 1 . . 1 1 . . . . 1 Hackware 4 | . . . . . . . 1 . 1 . . . 1 . . . . . . . . . . 1 Protection 55 | . 1 . 1 1 6 . 3 3 . . 1 . 5 . 1 3 . . 3 3 4 7 5 8 Artifact . | . . . . . . . . . . . . . . . . . . . . . . . . . Weapon 195 | . . 4 8 . 11 . 9 15 . 9 . 18 28 7 1 5 6 2 6 6 . 23 18 19 Energy Gun 51 | . . 1 . . . . 2 9 . 5 . 10 14 3 . 1 3 . . 1 . 1 . 1 Energy Cannon 23 | . . . 4 . . . 1 . . . . . 2 . . 1 . . . . . 1 8 6 Ballistic Gun 41 | . . 2 2 . 6 . 3 . . . . 1 6 . 1 1 1 2 3 4 . 8 1 . Ballistic Cannon 2 | . . . . . 1 . . . . . . . . . . . . . . . . 1 . . Launcher 34 | . . 1 2 . 3 . 1 . . . . 2 2 3 . 1 2 . . . . 4 6 7 Special Weapon 12 | . . . . . . . . . . . . . . . . . . . . . . 5 3 4 Impact Weapon 8 | . . . . . . . . . . . . . . . . . . . 3 1 . 3 . 1 Slashing Weapon 24 | . . . . . 1 . 2 6 . 4 . 5 4 1 . 1 . . . . . . . . Piercing Weapon . | . . . . . . . . . . . . . . . . . . . . . . . . . Special Melee Weapon . | . . . . . . . . . . . . . . . . . . . . . . . . . Unidentified Prototypes 26 | . . . 1 . 4 . 1 . . . . . 1 1 . 1 . . 1 11 . 2 2 1 Corrupted Parts 12 | . . . . . . . . . . . . . 2 2 1 . 3 . . 3 1 . . . System Corruption 64 | . . . . . . . . . . . . . 5 13 10 . 18 . . 11 7 . . . Parts Lost 93 | . . 1 . 1 9 . 2 5 . 4 . 3 28 5 1 . . . . . . 1 3 30 Power 10 | . . . . . . . . . . . . . 4 1 . . . . . . . . 1 4 Propulsion 31 | . . . . . 3 . . 3 . 3 . 2 11 2 . . . . . . . . 1 6 Utility 29 | . . . . 1 3 . 1 1 . . . . 6 . 1 . . . . . . 1 1 14 Weapon 23 | . . 1 . . 3 . 1 1 . 1 . 1 7 2 . . . . . . . . . 6 Highest Loss Streak 22 | . . 1 . 1 3 . 1 2 . 2 . 1 10 3 1 . . . . . . 1 1 22 To Critical Strikes 5 | . . . . . 4 . . 1 . . . . . . . . . . . . . . . . Average Slot Usage (%) 90 | . 89 100 99 99 94 100 98 98 85 91 87 83 89 69 91 80 93 92 93 91 87 89 93 89 Engine 2 | . 14 14 11 11 6 . . . . . . . 3 3 6 1 . . . . . . . . Core 4 | . . . . . 4 11 8 9 7 7 7 7 6 . 6 11 13 11 11 7 . . . 2 Reactor 2 | . . . . . . . . . . . . . 1 . . . . . . 3 11 11 9 5 Treads 23 | . . . 4 31 32 33 18 25 23 12 6 12 12 21 26 26 26 29 29 27 23 23 26 22 Leg 1 | . 28 28 11 . . . . . . . . . . . . . . . . . . . . . Wheel 3 | . . . 16 1 . . 17 10 7 17 19 9 9 . . . . . . . . . . . Device 10 | . . 12 11 11 6 . 5 9 12 9 7 7 9 12 5 10 20 16 14 8 10 10 19 20 Storage 7 | . 14 14 11 11 11 11 9 9 7 7 7 7 6 6 6 6 6 5 6 5 5 5 5 4 Processor 7 | . . . . . 2 11 9 7 2 5 7 7 4 6 12 12 6 10 11 11 11 11 10 12 Hackware 1 | . . . . . . . 2 . . 7 7 7 7 1 . . . . . . . . . 1 Protection 9 | . 4 1 10 11 11 11 7 8 7 7 7 7 11 6 11 8 6 5 5 13 11 13 11 8 Energy Gun 3 | . . 1 1 . . . . 16 15 14 15 11 8 4 6 . 9 2 . . . . . . Energy Cannon 2 | . . . 18 22 4 . 2 . . . . . . . . . . . . . . . 8 5 Ballistic Gun 6 | . 28 25 1 . 11 22 13 . . . . . 3 . 6 . 3 7 10 10 11 6 . . Naked Turns . | . . . . . . . . . . . . . . . . . . . . . . . . . Heaviest Build 185 | 13 19 19 109 109 124 114 120 129 131 131 131 132 141 122 129 145 138 135 161 182 184 185 167 162 Greatest Support 188 | 20 20 20 36 66 69 63 83 24 12 36 52 52 60 83 83 83 83 111 122 161 161 161 188 188 Greatest Overweight (x) 57 | . . . 6 4 2 1 9 10 10 10 5 4 12 8 1 1 1 1 1 1 57 1 . 1 Average Overweight (x) 2 | . . . 3 1 1 1 4 8 10 4 3 3 4 1 1 1 1 1 1 1 35 . . . Largest Inventory Capacity 25 | . 10 10 25 25 25 25 25 25 25 25 25 25 25 25 25 25 25 25 25 25 25 25 25 25 Average Capacity 24 | . 8 10 23 25 25 25 25 25 25 25 25 25 25 25 25 25 25 25 25 25 25 25 25 25 Most Carried 25 | . 8 10 25 25 25 25 25 25 25 25 25 25 25 21 18 25 25 25 25 25 25 25 25 25 Average Carried 22 | . 7 9 18 24 21 25 24 24 24 24 24 23 21 16 16 20 24 24 24 24 24 23 24 23 Final Capacity 25 | 8 10 10 25 25 25 25 25 25 25 25 25 25 25 25 25 25 25 25 25 25 25 25 25 25 Final Carried 25 | 6 8 10 25 24 25 25 25 25 24 25 25 24 22 18 18 23 25 24 25 25 24 25 23 8 Class Distribution -------------------- 63% | Scavenger-Mutant 28% | Mutant 6% | Scavenger-Skirmisher Dominant Class ---------------- Mutant | -10/Materials Mutant | -10/Mines Mutant | -9/Materials Mutant | -9/Mines Mutant | -9/Exiles Scavenger-Mutant | -8/Mines Mutant | -8/Materials Scavenger-Mutant | -8/Garrison Scavenger-Mutant | -7/Factory Scavenger-Mutant | -7/Garrison Scavenger-Mutant | -7/Factory Mutant | -7/Garrison Scavenger-Mutant | -6/Factory Scavenger-Mutant | -6/Lower Caves Scavenger-Mutant | -6/Lower Caves Scavenger-Mutant | -6/Zion Scavenger-Mutant | -5/Proximity Caves Scavenger-Skirmisher | -5/Factory Scavenger-Skirmisher | -5/Extension Scavenger-Mutant | -5/Cetus Scavenger-Mutant | -5/Archives Scavenger-Mutant | -5/Hub_04(d) Scavenger-Mutant | -4/Factory Scavenger-Mutant | -3/Research Resources | -11 -10 -10 -9 -9 -9 -8 -8 -8 -7 -7 -7 -7 -6 -6 -6 -6 -5 -5 -5 -5 -5 -5 -4 -3 ----------- Run | Jun Mat Min Mat Min Exi Min Mat Gar Fac Gar Fac Gar Fac Low Low Zio Pro Fac Ext Cet Arc Hub Fac Res Matter Collected 8663 | 193 49 371 296 60 1192 120 547 336 . 288 54 332 767 343 189 173 130 241 284 394 270 622 629 783 Remotely . | . . . . . . . . . . . . . . . . . . . . . . . . . Salvage Created 19815 | . 92 273 790 366 517 120 873 1008 . 1254 165 757 3249 330 . . 213 285 365 513 298 1751 3316 3280 Parts 842 | . 3 21 41 18 81 6 54 60 . 40 8 61 121 20 . . 7 10 12 31 18 45 110 75 Haulers Intercepted 12 | . . . 2 . . . 3 . . . . . 2 . . . . . . . . 1 4 . Recyclers Shooed 20 | . . . . . . . 2 . . . . . 7 . . . . 5 1 . . 1 2 2 Parts Field Recycled . | . . . . . . . . . . . . . . . . . . . . . . . . . Retrieved Matter . | . . . . . . . . . . . . . . . . . . . . . . . . . Parts Self-Destructed 16 | . . . . . . . . . . . . . . 9 . 1 6 . . . . . . . Prevented 15 | . . . . . . . . . . . . . . 5 . . 10 . . . . . . . Kills | -11 -10 -10 -9 -9 -9 -8 -8 -8 -7 -7 -7 -7 -6 -6 -6 -6 -5 -5 -5 -5 -5 -5 -4 -3 ------- Run | Jun Mat Min Mat Min Exi Min Mat Gar Fac Gar Fac Gar Fac Low Low Zio Pro Fac Ext Cet Arc Hub Fac Res Combat Hostiles Destroyed 367 | . 2 22 15 10 5 2 15 30 . 25 4 32 48 8 . . 3 3 5 8 . 24 43 63 Melee 2 | . . . . . . . . . . . . . . . . . . . 1 . . 1 . . Guns 161 | . 2 16 . . 2 2 8 30 . 25 4 19 32 4 . . . 3 4 8 . 1 . 1 Cannons 59 | . . . 9 10 1 . 6 . . . . . . . . . . . . . . 3 23 7 AOE 106 | . . 6 6 . 2 . 1 . . . . 13 9 4 . . 1 . . . . 4 17 43 Classes Destroyed 28 | . 1 2 5 . 2 1 2 1 . 1 1 1 6 . . . . . . . . 1 2 2 Worker 13 | . . . . . . . 2 . . . . . 6 . . . . . 1 . . 1 1 2 Builder 16 | . . . 1 . . . . . . . . . 4 . . . . . 1 . . 6 2 2 Tunneler 3 | . . . . . . . . . . . . . 2 . . . . . . . . . 1 . Hauler 12 | . . . 2 . . . 3 . . . . . 2 . . . . . . . . 1 4 . Recycler 13 | . . . 2 2 . . . . . . . . 3 . . . . 1 . . . . 3 2 Carrier 2 | . . . . . . . . . . . . . . . . . . . . . . . 1 1 Mechanic 4 | . . . . . . . . . . . . . 2 . . . . . . . . . 1 1 Operator 6 | . . . . . . . . . . . 1 . 1 . . . . . . . 3 1 . . Drone 1 | . . . . . . . . . . . . . . . . . . . . . . 1 . . Turret 1 | . . . . . 1 . . . . . . . . . . . . . . . . . . . Watcher 10 | . . . 1 . . . 2 . . . . . 1 . . . . . . . . 1 3 2 Swarmer 58 | . . 9 3 8 . . 3 4 . 3 . 11 . 3 . . . 1 . . . . 9 4 Cutter 4 | . . . . . . . . . . . . 4 . . . . . . . . . . . . Saboteur 4 | . . . . . . . . . . . . . 1 . . . . . . . . 1 . 2 Grunt 178 | . 2 2 9 . . 1 7 12 . 18 4 14 37 . . . 3 . 4 3 . 12 17 33 Brawler 11 | . . . . . . 1 . . . . . . . . . . . . . . . 2 1 7 Duelist 6 | . . . . . . . . . . . . . 1 . . . . . . . . 1 3 1 Protector 6 | . . . . . . . . . . . . . 1 . . . . . . . . . 1 4 Sentry 38 | . . . 3 2 . . 4 10 . 2 . 2 3 1 . . . 1 . . . 3 6 1 Specialist 4 | . . . . . . . . 2 . . . . . . . . . . . . . 2 . . Hunter 12 | . . . . . . . 1 2 . . . . . 4 . . . . . 1 . . 2 2 Programmer 22 | . . . . . . . . . . 2 . 1 3 . . . . 1 . 2 . 2 3 8 Heavy 4 | . . . . . . . . . . . . . 2 . . . . . . . . 1 1 . Cetus Guard 2 | . . . . . . . . . . . . . . . . . . . . 2 . . . . Enhanced Grunt 1 | . . . . . . . . . . . . . . . . . . . . . 1 . . . Investigator 1 | . . . . . . . . . . . . . . . . . . . . . . . . 1 Striker 1 | . . . . . . . . . . . . . . . . . . . . . . . . 1 Zionite 8 | . . . . . 8 . . . . . . . . . . . . . . . . . . . Z-Courier 1 | . . . . . . . . . . . . . . . . . . . . . 1 . . . Z-Light 1 | . . . . . . . . . . . . . . . . . . . . . . . 1 . Assembled 15 | . . 11 . . 4 . . . . . . . . . . . . . . . . . . . Butcher 1 | . . . . . . . . . . . . . . . . . . . 1 . . . . . Guerrilla 1 | . . . . . . . . . . . . . . . . . . . 1 . . . . . Best Kill Streak 16 | . 2 7 7 4 4 1 5 4 . 7 3 13 12 3 . . 3 2 2 3 1 9 10 16 Combat Bots Only 15 | . 2 7 3 4 3 1 5 4 . 7 3 13 8 3 . . 3 2 2 3 . 5 9 15 Max Kills in Single Turn 6 | . 1 2 3 1 2 1 2 2 . 1 1 3 4 1 . . 2 1 2 2 2 3 5 6 Gunslinging 1 | . . 1 . . . . . . . . . . . . . . . . . . . . . . Exploded 6 | . . 2 3 . 2 . 1 . . . . 3 3 1 . . 1 . . . . 1 4 6 Melee 1 | . . . . . . . . . . . . . . . . . . . 1 . . 1 . . Uniques/NPCs Destroyed 4 | . . . . . 4 . . . . . . . . . . . . . . . . . . . 8R-AWN (-9/Exiles) EX-BIN (-9/Exiles) EX-HEX (-9/Exiles) EX-DEC (-9/Exiles) Combat | -11 -10 -10 -9 -9 -9 -8 -8 -8 -7 -7 -7 -7 -6 -6 -6 -6 -5 -5 -5 -5 -5 -5 -4 -3 -------- Run | Jun Mat Min Mat Min Exi Min Mat Gar Fac Gar Fac Gar Fac Low Low Zio Pro Fac Ext Cet Arc Hub Fac Res Damage Taken 28337 | . 108 445 482 304 1964 94 1061 1200 58 1289 103 1189 4371 835 13 . 166 308 401 289 152 1750 3651 8104 Core 3115 | . 34 110 48 36 181 . 144 72 29 73 . 129 492 76 . . 13 15 36 12 . 99 202 1314 Absorbed by Shields 3133 | . . . . . 56 . 137 44 . 183 . . 66 . . . 61 111 79 107 55 413 945 876 Reduced by Siege Mode 35 | . . . . . . . . . . . . . . . . . . . . . . . 23 12 Redirected to Shielding 440 | . . 15 . . . . . . . . . . 157 46 4 . . . . 13 . 94 7 104 Regen/Repaired (Parts) 2740 | . . . 25 . . . 450 . . . . . . . . 1276 . . . 118 30 137 322 382 Core Remaining (%) 62 | 100 . 42 . . . 33 . 60 . . . 67 . . . . 31 . . . . 83 82 . Volleys Fired 1012 | . 14 54 45 21 119 9 62 56 2 60 9 47 128 21 7 . 10 19 18 17 14 65 115 100 Largest 2 | . 2 2 2 2 2 2 2 2 2 2 2 2 2 2 2 . 2 2 2 2 2 2 2 2 Hottest 255 | . 40 70 120 120 62 46 83 150 150 150 150 155 155 119 97 . 97 102 66 66 70 220 255 220 Shots Fired 1783 | . 28 101 83 42 204 18 124 107 4 118 18 88 248 24 16 . 13 38 36 34 28 76 202 133 Gun 1205 | . 28 94 . . 166 18 105 107 4 118 18 81 242 17 16 . 8 38 36 34 28 33 2 12 Cannon 390 | . . . 76 42 6 . 18 . . . . . 2 . . . . . . . . . 178 68 Launcher 127 | . . 7 7 . 32 . 1 . . . . 7 4 7 . . 5 . . . . 17 10 30 Special 61 | . . . . . . . . . . . . . . . . . . . . . . 26 12 23 Kinetic 630 | . 28 88 . . 172 18 105 . . . . 3 47 . 8 . 4 24 36 34 28 33 2 . Thermal 1012 | . . 6 76 42 . . 18 107 4 118 18 78 184 16 8 . 4 14 . . . 26 190 103 Explosive 101 | . . 7 7 . 32 . 1 . . . . 7 4 3 . . . . . . . . 10 30 Electromagnetic 40 | . . . . . . . . . . . . . 13 5 . . 5 . . . . 17 . . Robot Hit Streak 49 | . 5 11 5 8 12 5 11 20 3 16 6 14 28 11 3 . 4 7 10 10 7 22 36 49 Robot Miss Streak 12 | . 2 4 5 5 5 2 4 7 5 8 4 11 7 3 12 . 4 3 4 1 2 5 4 2 Penetration Max 1 | . . . . . . . . . . . . . 1 . . . . 1 1 1 1 1 . . Secondary Targets 21 | . . 2 . . . 1 . 3 . 3 2 3 1 . . . . 1 3 2 . . . . Max Gunslinging Chain 1 | . . 1 . . . 1 . 1 . 1 1 1 1 . . . . 1 1 1 . . . . Shots Hit Robots 1331 | . 18 49 48 25 121 12 85 103 4 136 17 76 213 19 9 . 9 27 22 29 20 57 130 102 Core Hits 1223 | . 8 39 24 13 56 5 40 135 3 155 23 112 225 12 2 . 9 11 16 17 8 65 104 141 Critical Kills 11 | . . . . . . . 1 . . . . . . . . . . . 1 . 4 . 2 3 Critical Parts Destroyed 10 | . . . . . 1 . . . . . . . . . . . . 3 . . 1 4 1 . Critical Strikes 25 | . . . . . 1 . 1 . . 1 . . 1 . . . . 4 1 . 6 4 3 3 Burn 2 | . . . . . . . . . . . . . 1 . . . . 1 . . . . . . Meltdown 5 | . . . . . . . . . . . . . . . . . . . . . . . 2 3 Destroy 17 | . . . . . 1 . 1 . . . . . . . . . . 3 1 . 6 4 1 . Sever 1 | . . . . . . . . . . 1 . . . . . . . . . . . . . . Melee Attacks 123 | . . . . . 4 . 4 12 . 30 . 19 15 . . 1 . . 29 3 . 4 . 2 Impact 38 | . . . . . . . . . . . . . . . . . . . 29 3 . 4 . 2 Slashing 85 | . . . . . 4 . 4 12 . 30 . 19 15 . . 1 . . . . . . . . Piercing . | . . . . . . . . . . . . . . . . . . . . . . . . . Sneak Attacks 7 | . . . . . . . . . . . . . 4 . . . . . 2 . . 1 . . Combat Hostiles 2 | . . . . . . . . . . . . . . . . . . . 2 . . . . . Follow-up Attacks . | . . . . . . . . . . . . . . . . . . . . . . . . . Damage Inflicted 58499 | . 204 848 1637 648 2637 174 1488 2243 60 3698 338 2772 8338 687 132 . 536 690 1126 929 620 4168 9377 15149 Guns 19186 | . 178 498 . . 1679 174 1059 2243 60 2293 338 1446 4810 228 132 . 161 690 835 929 620 566 56 191 Cannons 8292 | . . . 1185 647 43 . 399 . . . . . 7 . . . . . . . . . 4149 1862 Explosions 25632 | . . 344 452 . 580 . 16 . . . . 1326 3152 459 . . 375 . . . . 2322 4642 11964 Melee 2471 | . . . . . 288 . . . . 1405 . . 367 . . . . . 264 . . 103 . 44 Ramming 142 | . 26 6 . 1 47 . 14 . . . . . 2 . . . . . 27 . . . 19 . Kinetic 7954 | . 178 460 . . 1722 174 1059 . . . . 41 685 . 76 . 84 469 835 929 620 566 56 . Thermal 23634 | . . 38 1185 647 . . 399 2243 60 2293 338 1405 4547 228 56 . 77 221 . . . 1556 4685 3656 Explosive 20227 | . . 344 452 . 580 . 16 . . . . 1326 1145 298 . . . . . . . . 4617 11449 Electromagnetic 4071 | . . . . . . . . . . . . . 1592 161 . . 375 . . . . 1943 . . Impact 411 | . . . . . . . . . . . . . . . . . . . 264 . . 103 . 44 Slashing 2060 | . . . . . 288 . . . . 1405 . . 367 . . . . . . . . . . . Piercing . | . . . . . . . . . . . . . . . . . . . . . . . . . Highest Corruption 31 | . . 1 . . . . 5 5 . 4 4 5 8 21 31 31 18 1 . 11 11 2 4 23 Average Corruption 8 | . . 1 . . . . 5 5 . 3 4 4 3 13 30 31 13 1 . 9 7 1 3 6 Corruption Purged 29 | . . . . . . . . . . . . . 6 . . . . 1 . . 18 . . 4 Corruption Blocked 8 | . . . . . . . . . . . . . 8 . . . . . . . . . . . Effects 352 | . . 1 . . . . 25 39 . 16 3 36 27 48 47 6 16 1 . 8 18 3 19 39 Message Errors 84 | . . . . . . . 7 12 . 4 2 9 8 5 9 2 3 . . 4 6 1 1 11 Matter Fused 85 | . . 1 . . . . 4 8 . 3 1 4 4 19 13 2 7 . . 1 5 . 7 6 Heat Flow Errors 42 | . . . . . . . 3 5 . . . 7 4 5 7 1 . . . . 3 . 2 5 Energy Discharges 45 | . . . . . . . 3 6 . 3 . 5 1 8 9 . . 1 . 1 . . 2 6 Parts Rejected 3 | . . . . . . . . . . . . . 1 . . . 1 . . . . . . 1 Parts Fused 3 | . . . . . . . . 1 . . . . 1 . . . 1 . . . . . . . Data Loss (minor) 36 | . . . . . . . 3 4 . 2 . 8 1 3 6 . 1 . . 1 1 1 2 3 Data Loss (major) 20 | . . . . . . . 3 2 . 1 . 2 2 5 . 1 1 . . . . 1 2 . Misfires 14 | . . . . . . . 1 . . 1 . 1 2 2 2 . . . . . . . 1 4 Alerts 8 | . . . . . . . . . . . . . 2 1 1 . 1 . . 1 . . 1 1 Misdirections 3 | . . . . . . . . . . . . . . . . . . . . . 3 . . . Weapon Failures 9 | . . . . . . . 1 1 . 2 . . 1 . . . 1 . . . . . 1 2 Overload Shots . | . . . . . . . . . . . . . . . . . . . . . . . . . Overflow Damage 1865 | . . 3 54 14 17 . 4 . . 31 . 47 220 24 . . . . 22 . . 223 437 769 Projectiles 333 | . . . 43 14 . . 4 . . . . . . . . . . . . . . 9 108 155 Explosions 1220 | . . 3 11 . 7 . . . . . . 47 82 24 . . . . . . . 131 325 590 Melee 312 | . . . . . 10 . . . . 31 . . 138 . . . . . 22 . . 83 4 24 Knockbacks 2 | . . . . . 2 . . . . . . . . . . . . . . . . . . . Impact 1 | . . . . . 1 . . . . . . . . . . . . . . . . . . . Kinetic 1 | . . . . . 1 . . . . . . . . . . . . . . . . . . . Secondary . | . . . . . . . . . . . . . . . . . . . . . . . . . Self-Inflicted Damage 1008 | . . . . . 59 . 7 . . . . 38 59 54 . . . . . . . 216 192 383 Shots 26 | . . . . . 3 . . . . . . 2 2 4 . . . . . . . 7 3 5 Rammed 18 | . . . . 1 12 . 1 . . . . . 1 . . . . . 1 . 1 . 1 . Targets Rammed 25 | . 6 1 . 1 12 . 1 . . . . . 1 . . . . . 1 . 1 . 1 . Kicked 7 | . 6 1 . . . . . . . . . . . . . . . . . . . . . . Crushed . | . . . . . . . . . . . . . . . . . . . . . . . . . Highest Temperature 457 | . 12 24 243 18 168 144 271 396 72 395 189 457 308 242 275 145 . . 72 104 343 309 291 173 Average Temperature 78 | . 7 8 71 7 46 72 70 101 40 122 73 127 74 50 95 79 . . 31 29 101 95 88 44 Received Heat Transfer 5826 | . 60 148 261 18 20 90 374 449 18 512 72 300 1225 84 . . 24 18 93 63 24 367 603 1003 Effects 19 | . . . . . . . . 5 . 3 . 4 . . 3 . . . . . 2 . 2 . Shutdowns 3 | . . . . . . . . 1 . 1 . 1 . . . . . . . . . . . . Energy Bleed 5 | . . . . . . . . 1 . 1 . . . . . . . . . . 2 . 1 . Interference 10 | . . . . . . . . 3 . . . 3 . . 3 . . . . . . . 1 . Matter Decay 1 | . . . . . . . . . . 1 . . . . . . . . . . . . . . Siege Activations 4 | . . . . . . . . . . . . . . . . . . . . . . 1 2 1 Total Turns 55 | . . . . . . . . . . . . . . . . . . . . . . 2 45 8 Longest Duration 26 | . . . . . . . . . . . . . . . . . . . . . . 2 26 8 Robots Corrupted 11 | . . . . . . . . . . . . . 5 . . . 2 . . . . 4 . . Combat Hostiles 11 | . . . . . . . . . . . . . 5 . . . 2 . . . . 4 . . Parts Fried 32 | . . . . . . . . . . . . . 13 1 . . 4 . . . . 14 . . Impact Corruptions 5 | . . . . . . . . . . . . . . . . . . . 1 . . 2 1 1 Robots Melted 30 | . . . . . . . . . . . . . 2 . . . . . . . . 11 4 13 Combat Hostiles 27 | . . . . . . . . . . . . . 2 . . . . . . . . 11 3 11 Parts Melted 101 | . . . 3 2 . . . 1 . 1 . 3 13 . . . . . 2 . . 23 16 37 Heat Transferred 40239 | . . 111 1850 999 . . 629 1807 50 1848 280 1345 7186 444 111 . 148 481 . . . 7590 7394 7966 Parts Sabotaged 10 | . . . . . . . . . . . . . . . . . . . . . . 3 . 7 Parts Stolen 3 | . . . . . . . . . . . . . . . 3 . . . . . . . . . Parts Stripped . | . . . . . . . . . . . . . . . . . . . . . . . . . Power Chain Reactions 10 | . . . . . . . . . . . . . . 1 . . . . . . . 5 . 4 Missiles Intercepted . | . . . . . . . . . . . . . . . . . . . . . . . . . Latent Energy Used 400 | . . . . . . . . . . . . . 400 . . . . . . . . . . . LE Corruption 6 | . . . . . . . . . . . . . 6 . . . . . . . . . . . Alert | -11 -10 -10 -9 -9 -9 -8 -8 -8 -7 -7 -7 -7 -6 -6 -6 -6 -5 -5 -5 -5 -5 -5 -4 -3 ------- Run | Jun Mat Min Mat Min Exi Min Mat Gar Fac Gar Fac Gar Fac Low Low Zio Pro Fac Ext Cet Arc Hub Fac Res Peak Influence 2803 | . 86 293 430 273 . 65 202 1020 560 1119 691 1323 1389 . . . . 167 625 936 571 1485 2568 2803 Initial 1342 | . . 33 26 114 . . 25 130 535 392 587 483 694 . . . . 29 81 347 367 . 668 1342 Average 542 | . 45 153 290 102 . 38 88 577 550 823 618 1027 1001 . . . . 125 257 664 93 813 1330 1713 Maximum Alert Level 5 | . . 1 2 1 . . 1 3 2 4 2 4 4 . . . . . 2 3 2 4 5 5 Low Security (%) 38 | . 100 66 11 77 . 100 90 4 . . . . . . . . . 100 47 . 77 16 . . Level 1 13 | . . 33 73 22 . . 9 22 . 1 . . . . . . . . 22 7 15 1 . . Level 2 14 | . . . 15 . . . . 41 100 29 100 13 9 . . . . . 29 39 6 13 2 . Level 3 18 | . . . . . . . . 31 . 67 . 37 60 . . . . . . 52 . 53 38 . Level 4 11 | . . . . . . . . . . 1 . 48 30 . . . . . . . . 16 33 58 Level 5 1 | . . . . . . . . . . . . . . . . . . . . . . . 12 15 High Security 2 | . . . . . . . . . . . . . . . . . . . . . . . 13 26 Max Security . | . . . . . . . . . . . . . . . . . . . . . . . . . Squads Dispatched 73 | . 1 . 3 . . . 2 . 1 . 2 . 16 . . . . . 4 . . 10 14 20 Investigation 6 | . . . 1 . . . 1 . . . . . 2 . . . . . 1 . . 1 . . Extermination 7 | . . . . . . . . . . . . . 2 . . . . . . . . 1 2 2 Reinforcement 23 | . 1 . 2 . . . 1 . 1 . 1 . 9 . . . . . 2 . . 5 . 1 Assault 36 | . . . . . . . . . . . . . 3 . . . . . 1 . . 3 12 17 Garrison 1 | . . . . . . . . . . . 1 . . . . . . . . . . . . . Intercept . | . . . . . . . . . . . . . . . . . . . . . . . . . Searches Triggered . | . . . . . . . . . . . . . . . . . . . . . . . . . Construction Impeded 4 | . . . 1 . . . . . . . . . 1 . . . . . 1 . . 1 . . Haulers Reinforced 1 | . . . . . . . . . . . . . 1 . . . . . . . . . . . Active Scanning Responses . | . . . . . . . . . . . . . . . . . . . . . . . . . Cargo Convoy Interrupts 1 | . . . . . . . . . . . . . 1 . . . . . . . . . . . Stealth | -11 -10 -10 -9 -9 -9 -8 -8 -8 -7 -7 -7 -7 -6 -6 -6 -6 -5 -5 -5 -5 -5 -5 -4 -3 --------- Run | Jun Mat Min Mat Min Exi Min Mat Gar Fac Gar Fac Gar Fac Low Low Zio Pro Fac Ext Cet Arc Hub Fac Res Distress Signals 24 | . 1 . 3 . . . 4 . . . . . 7 . . . . . 1 2 . 2 3 1 Communications Jammed 210 | . . . . . . . . . . . . . . . . . . . . . . . 82 128 Distress Signals 203 | . . . . . . . . . . . . . . . . . . . . . . . 79 124 Times Spotted 662 | . 6 27 29 10 70 3 26 30 5 27 6 27 69 8 4 . 11 7 38 25 10 50 78 96 Peak Tracking Total 17 | . 3 10 6 4 9 3 5 4 4 7 3 6 9 3 2 . 4 2 7 5 1 7 14 17 Tactical Retreats 24 | . . 2 1 . 9 1 . . . 2 . . 4 . . . 1 1 . . . . 2 1 Traps | -11 -10 -10 -9 -9 -9 -8 -8 -8 -7 -7 -7 -7 -6 -6 -6 -6 -5 -5 -5 -5 -5 -5 -4 -3 ------- Run | Jun Mat Min Mat Min Exi Min Mat Gar Fac Gar Fac Gar Fac Low Low Zio Pro Fac Ext Cet Arc Hub Fac Res Traps Triggered 19 | . . . 1 . . . . 6 . 4 . 5 1 . . . . 1 . . . . . 1 Indirectly . | . . . . . . . . . . . . . . . . . . . . . . . . . Trap Hack Attempts . | . . . . . . . . . . . . . . . . . . . . . . . . . Triggered . | . . . . . . . . . . . . . . . . . . . . . . . . . Disarmed . | . . . . . . . . . . . . . . . . . . . . . . . . . Reprogrammed . | . . . . . . . . . . . . . . . . . . . . . . . . . Reused . | . . . . . . . . . . . . . . . . . . . . . . . . . Traps Extracted . | . . . . . . . . . . . . . . . . . . . . . . . . . Installed . | . . . . . . . . . . . . . . . . . . . . . . . . . Triggered 5 | . . 1 . . . . . . . . . . 4 . . . . . . . . . . . Exploded 3 | . . . . . 3 . . . . . . . . . . . . . . . . . . . Machines | -11 -10 -10 -9 -9 -9 -8 -8 -8 -7 -7 -7 -7 -6 -6 -6 -6 -5 -5 -5 -5 -5 -5 -4 -3 ---------- Run | Jun Mat Min Mat Min Exi Min Mat Gar Fac Gar Fac Gar Fac Low Low Zio Pro Fac Ext Cet Arc Hub Fac Res Machines Disabled 65 | . . . 3 . 10 . . 5 . 3 . 6 5 . . . . . 1 . 3 9 18 2 Max in Single Turn 6 | . . . 1 . 1 . . 1 . 1 . 1 2 . . . . . . . 1 6 6 1 Garrison Access 1 | . . . . . . . . . . . . . . . . . . . . . . 1 . . Garrison Relay 10 | . . . . . . . . 3 . 4 . 3 . . . . . . . . . . . . Network Hub 1 | . . . . . . . . . . . . . . . . . . . . . . 1 . . Machines Repaired . | . . . . . . . . . . . . . . . . . . . . . . . . . Machines Sabotaged . | . . . . . . . . . . . . . . . . . . . . . . . . . Overloaded Fab Kills . | . . . . . . . . . . . . . . . . . . . . . . . . . Hacking | -11 -10 -10 -9 -9 -9 -8 -8 -8 -7 -7 -7 -7 -6 -6 -6 -6 -5 -5 -5 -5 -5 -5 -4 -3 --------- Run | Jun Mat Min Mat Min Exi Min Mat Gar Fac Gar Fac Gar Fac Low Low Zio Pro Fac Ext Cet Arc Hub Fac Res Machines Accessed 38 | . 1 1 5 1 2 . 7 3 1 1 1 3 5 . . 1 1 . 2 1 . . . 2 Terminals 25 | . 1 1 4 . . . 4 3 . 1 . 3 3 . . . 1 . 2 1 . . . 1 Fabricators 2 | . . . . . . . . . . . . . 1 . . . . . . . . . . 1 Repair Stations 3 | . . . 1 . . . 1 . . . . . 1 . . . . . . . . . . . Recycling Units . | . . . . . . . . . . . . . . . . . . . . . . . . . Scanalyzers 1 | . . . . . . . 1 . . . . . . . . . . . . . . . . . Garrison Access 3 | . . . . . . . 1 . 1 . 1 . . . . . . . . . . . . . Total Hacks 109 | . 5 5 15 1 2 . 29 7 3 1 1 6 15 . . 3 2 . 5 1 . . . 8 Successful 52 | . 2 2 8 1 2 . 17 1 1 . 1 2 8 . . 3 2 . . . . . . 2 Failed 56 | . 2 3 7 . . . 12 6 2 1 . 4 7 . . . . . 5 1 . . . 6 Catastrophic 6 | . . . 2 . . . 2 . . 1 . . . . . . . . 1 . . . . . Database Lockouts 1 | . 1 . . . . . . . . . . . . . . . . . . . . . . . Manual 81 | . 5 6 8 . 1 . 9 3 . . . 1 9 . . . . 2 15 1 . 5 10 6 Terminals 72 | . 5 5 13 . . . 12 7 . 1 . 6 11 . . . 2 . 5 1 . . . 4 Fabricators 6 | . . . . . . . . . . . . . 2 . . . . . . . . . . 4 Repair Stations 12 | . . . 2 . . . 8 . . . . . 2 . . . . . . . . . . . Recycling Units . | . . . . . . . . . . . . . . . . . . . . . . . . . Scanalyzers 7 | . . . . . . . 7 . . . . . . . . . . . . . . . . . Garrison Access 6 | . . . . . . . 2 . 3 . 1 . . . . . . . . . . . . . Terminal Hacks 30 | . 1 2 6 1 2 . 4 1 . . . 2 5 . . 3 2 . . . . . . 1 Record 3 | . . . . . 1 . . . . . . . . . . . 2 . . . . . . . Part Schematic 3 | . . . . . . . . . . . . . . . . 3 . . . . . . . . Robot Analysis 2 | . 1 1 . . . . . . . . . . . . . . . . . . . . . . Prototype ID Bank 2 | . . . 2 . . . . . . . . . . . . . . . . . . . . . Open Door 2 | . . . . 1 . . . . . . . 1 . . . . . . . . . . . . Open DSF 1 | . . . . . . . . . . . . . . . . . . . . . . . . 1 Level Access Points 1 | . . . . . . . . . . . . . 1 . . . . . . . . . . . Branch Access Points 2 | . . . 1 . . . . . . . . . 1 . . . . . . . . . . . Emergency Access Points 2 | . . . . . . . . 1 . . . 1 . . . . . . . . . . . . Scanalyzer Index 1 | . . . . . . . 1 . . . . . . . . . . . . . . . . . Garrison Index 1 | . . . . . . . 1 . . . . . . . . . . . . . . . . . Unreport Threat 3 | . . . . . . . . . . . . . 3 . . . . . . . . . . . Dispatch Records 1 | . . . 1 . . . . . . . . . . . . . . . . . . . . . Transport Status 1 | . . . 1 . . . . . . . . . . . . . . . . . . . . . Recall Reinforcements 1 | . . . . . . . 1 . . . . . . . . . . . . . . . . . Hauler Manifests 1 | . . . . . . . 1 . . . . . . . . . . . . . . . . . Zone Layout 2 | . . 1 1 . . . . . . . . . . . . . . . . . . . . . EX-Prototype ID Bank 1 | . . . . . 1 . . . . . . . . . . . . . . . . . . . Fabricator Hacks 1 | . . . . . . . . . . . . . . . . . . . . . . . . 1 Build 1 | . . . . . . . . . . . . . . . . . . . . . . . . 1 Repair Station Hacks 10 | . . . 2 . . . 6 . . . . . 2 . . . . . . . . . . . Scan Component 5 | . . . 1 . . . 3 . . . . . 1 . . . . . . . . . . . Repair 5 | . . . 1 . . . 3 . . . . . 1 . . . . . . . . . . . Recycling Unit Hacks . | . . . . . . . . . . . . . . . . . . . . . . . . . Scanalyzer 5 | . . . . . . . 5 . . . . . . . . . . . . . . . . . Insert Component 2 | . . . . . . . 2 . . . . . . . . . . . . . . . . . Analyze 3 | . . . . . . . 3 . . . . . . . . . . . . . . . . . Garrison Access Hacks 3 | . . . . . . . 1 . 1 . 1 . . . . . . . . . . . . . Unlock Access 3 | . . . . . . . 1 . 1 . 1 . . . . . . . . . . . . . Unauthorized Hacks 3 | . 1 . . . . . 1 . . . . . 1 . . . . . . . . . . . Terminals 3 | . 1 . . . . . 1 . . . . . 1 . . . . . . . . . . . Assimilate 1 | . . . . . . . 1 . . . . . . . . . . . . . . . . . Botnet 1 | . . . . . . . . . . . . . 1 . . . . . . . . . . . Disrupt 1 | . 1 . . . . . . . . . . . . . . . . . . . . . . . Fabricators . | . . . . . . . . . . . . . . . . . . . . . . . . . Repair Stations . | . . . . . . . . . . . . . . . . . . . . . . . . . Recycling Units . | . . . . . . . . . . . . . . . . . . . . . . . . . Scanalyzers . | . . . . . . . . . . . . . . . . . . . . . . . . . Garrison Access . | . . . . . . . . . . . . . . . . . . . . . . . . . Data Cores Recovered . | . . . . . . . . . . . . . . . . . . . . . . . . . Used . | . . . . . . . . . . . . . . . . . . . . . . . . . Hacking Detections 29 | . . 1 4 . . . 7 3 1 1 . 3 5 . . . . . 2 1 . . . 1 Full Trace Events 1 | . . . . . . . 1 . . . . . . . . . . . . . . . . . Feedback Events . | . . . . . . . . . . . . . . . . . . . . . . . . . Feedback Blocked . | . . . . . . . . . . . . . . . . . . . . . . . . . Robot Schematics Acquired 9 | . . . . . . . . . . . . . . . . 4 . . 5 . . . . . Robots Built 1 | . . . . . . . . . . . . . . . . . . . . . . . . 1 Authchips . | . . . . . . . . . . . . . . . . . . . . . . . . . Time 40 | . . . . . . . . . . . . . . . . . . . . . . . . 40 Total Robot Build Rating 1 | . . . . . . . . . . . . . . . . . . . . . . . . 1 Part Schematics Acquired 19 | . . . . . . . 1 . . . . . . . . 18 . . . . . . . . Parts Built . | . . . . . . . . . . . . . . . . . . . . . . . . . Authchips . | . . . . . . . . . . . . . . . . . . . . . . . . . Time . | . . . . . . . . . . . . . . . . . . . . . . . . . Total Part Build Rating . | . . . . . . . . . . . . . . . . . . . . . . . . . Parts Repaired 4 | . . . 1 . . . 3 . . . . . . . . . . . . . . . . . Time 184 | . . . 32 . . . 126 . . . . . 26 . . . . . . . . . . . Parts Recycled . | . . . . . . . . . . . . . . . . . . . . . . . . . Recycled Matter . | . . . . . . . . . . . . . . . . . . . . . . . . . Retrieved Matter . | . . . . . . . . . . . . . . . . . . . . . . . . . Retrieved Components . | . . . . . . . . . . . . . . . . . . . . . . . . . Parts Scanalyzed 2 | . . . . . . . 2 . . . . . . . . . . . . . . . . . Part Schematics Acquired 1 | . . . . . . . 1 . . . . . . . . . . . . . . . . . Parts Damaged 1 | . . . . . . . 1 . . . . . . . . . . . . . . . . . Bothacking | -11 -10 -10 -9 -9 -9 -8 -8 -8 -7 -7 -7 -7 -6 -6 -6 -6 -5 -5 -5 -5 -5 -5 -4 -3 ------------ Run | Jun Mat Min Mat Min Exi Min Mat Gar Fac Gar Fac Gar Fac Low Low Zio Pro Fac Ext Cet Arc Hub Fac Res Used RIF Installer . | . . . . . . . . . . . . . . . . . . . . . . . . . Robots Hacked . | . . . . . . . . . . . . . . . . . . . . . . . . . Non-combat . | . . . . . . . . . . . . . . . . . . . . . . . . . Combat . | . . . . . . . . . . . . . . . . . . . . . . . . . Robot Hacks Applied . | . . . . . . . . . . . . . . . . . . . . . . . . . Relay Couplers Released 43 | . . . . . . . . 11 . 21 . 11 . . . . . . . . . . . . Machine Destruction 39 | . . . . . . . . 11 . 17 . 11 . . . . . . . . . . . . Programmers 4 | . . . . . . . . . . 4 . . . . . . . . . . . . . . Fabnet Peak Effective % . | . . . . . . . . . . . . . . . . . . . . . . . . . Robots Rewired 12 | . . . . . . . . . . . . . . . . . . . 10 . . 1 1 . Allies Hacked 3 | . . . . . . . . . . . . . . . . . . . 1 . . . . 2 Hacks Repelled . | . . . . . . . . . . . . . . . . . . . . . . . . . Allies | -11 -10 -10 -9 -9 -9 -8 -8 -8 -7 -7 -7 -7 -6 -6 -6 -6 -5 -5 -5 -5 -5 -5 -4 -3 -------- Run | Jun Mat Min Mat Min Exi Min Mat Gar Fac Gar Fac Gar Fac Low Low Zio Pro Fac Ext Cet Arc Hub Fac Res Total Allies 45 | . . 3 . . . . 1 . . . . 1 . . . 4 . 1 22 5 . 3 4 1 Largest Group 9 | . . 3 . . . . 1 . . . . 1 1 . . 4 4 4 9 8 6 5 3 1 Highest-Rated Group 687 | . . 40 . . . . 10 . . . . 39 39 . . 158 158 158 466 687 417 368 288 8 Highest-Rated Ally 159 | . . 16 . . . . 10 . . . . 39 39 . . 41 41 135 159 159 96 87 96 8 Zionite Dispatches 7 | . . . . . . . . . . . . . . . . . . 1 3 . . 2 1 . Heavy 1 | . . . . . . . . . . . . . . . . . . . . . . 1 . . Light 2 | . . . . . . . . . . . . . . . . . . . 1 . . . 1 . Recon 1 | . . . . . . . . . . . . . . . . . . . . . . 1 . . Hero 1 | . . . . . . . . . . . . . . . . . . 1 . . . . . . Defense Resupply 1 | . . . . . . . . . . . . . . . . . . . 1 . . . . . Hacking Resupply 1 | . . . . . . . . . . . . . . . . . . . 1 . . . . . Total Orders 5 | . . . . . . . . . . . . . 1 . . . . . 2 . . 1 1 . DROP 2 | . . . . . . . . . . . . . . . . . . . 2 . . . . . EXPLORE 3 | . . . . . . . . . . . . . 1 . . . . . . . . 1 1 . Ally Attacks 492 | . . 24 . . . . . . . . . . 5 . . . 43 12 164 109 38 46 51 . Total Damage 13899 | . . 243 . . . . . . . . . . 98 . . . 890 205 3639 3281 1543 2118 1882 . Kills 95 | . . 3 . . . . . . . . . . 2 . . . 7 3 32 16 4 18 10 . Allies Corrupted 1 | . . . . . . . . . . . . . . . . . . . 1 . . . . . Allies Melted . | . . . . . . . . . . . . . . . . . . . . . . . . . Intel | -11 -10 -10 -9 -9 -9 -8 -8 -8 -7 -7 -7 -7 -6 -6 -6 -6 -5 -5 -5 -5 -5 -5 -4 -3 ------- Run | Jun Mat Min Mat Min Exi Min Mat Gar Fac Gar Fac Gar Fac Low Low Zio Pro Fac Ext Cet Arc Hub Fac Res Robot Analysis Total 2 | . 1 1 . . . . . . . . . . . . . . . . . . . . . . Derelict Logs Recovered 6 | . . 1 . 1 . . . . . . . . . 2 1 . 1 . . . . . . . Drone Launches 7 | . . . . . . . . . . . . . 3 . . . . . . . . 2 2 . Drone Recoveries . | . . . . . . . . . . . . . . . . . . . . . . . . . Zionite Intel Received 4 | . . . . . . . . . . . . . . . . . . . 2 . . . 1 1 Emergency Access 1 | . . . . . . . . . . . . . . . . . . . . . . . . 1 Unaware Schematics 1 | . . . . . . . . . . . . . . . . . . . 1 . . . . . Active Terminals 2 | . . . . . . . . . . . . . . . . . . . 1 . . . 1 . Exploration | -11 -10 -10 -9 -9 -9 -8 -8 -8 -7 -7 -7 -7 -6 -6 -6 -6 -5 -5 -5 -5 -5 -5 -4 -3 ------------- Run | Jun Mat Min Mat Min Exi Min Mat Gar Fac Gar Fac Gar Fac Low Low Zio Pro Fac Ext Cet Arc Hub Fac Res Turns Passed 33615 | . 230 776 852 1471 4124 162 1053 1510 180 1215 223 1343 1777 1155 947 3335 814 349 2228 612 5412 840 1678 1329 Spaces Moved 11496 | 1 148 507 378 593 1511 57 465 556 71 427 127 696 697 398 365 1345 315 110 777 201 269 258 679 545 Core 164 | . . . . . . . . . . . . . . . . . . . . . 164 . . . Treads 7215 | . . . . 554 1511 57 3 . . . . . 21 369 365 1345 315 110 777 201 105 258 679 545 Legs 698 | 1 148 507 42 . . . . . . . . . . . . . . . . . . . . . Wheels 3419 | . . . 336 39 . . 462 556 71 427 127 696 676 29 . . . . . . . . . . Hover . | . . . . . . . . . . . . . . . . . . . . . . . . . Flight . | . . . . . . . . . . . . . . . . . . . . . . . . . Fastest Speed 90 | 120 120 120 90 150 240 240 135 150 240 135 123 123 116 200 245 245 245 244 244 247 247 167 168 166 Average Speed 243 | 120 120 120 151 234 240 240 154 213 240 156 141 153 169 260 245 245 245 244 246 248 1864 218 168 169 Slowest Speed 2900 | 120 120 120 190 240 320 240 245 240 240 240 165 160 570 330 245 245 245 244 250 250 2900 247 168 250 Overloaded Moves . | . . . . . . . . . . . . . . . . . . . . . . . . . Propulsion Burnouts . | . . . . . . . . . . . . . . . . . . . . . . . . . Robots Hopped . | . . . . . . . . . . . . . . . . . . . . . . . . . Cave-ins Triggered . | . . . . . . . . . . . . . . . . . . . . . . . . . Exploration Rate (%) 49 | 2 40 96 30 98 91 24 42 79 4 47 5 81 42 54 50 90 51 3 86 66 81 37 27 19 Regions Visited 24 Branch Regions 12 Pre-discovered Areas 5 | . . 1 . 1 1 . . . . . . . . 2 . . . . . . . . . . Known Exits Taken 11 | . . . 1 . . . 1 . 1 . 1 . 1 1 1 1 1 1 . . . 1 . . Unknown Exits Taken 10 | 1 1 1 . 1 1 1 . . . . . . . . . . . . 1 1 1 . 1 . Scrap Searched 9 | . . 2 . 3 . . . . . . . . . 1 2 1 . . . . . . . . Spaces Dug 227 | . . . 7 . . . 4 6 . . . 6 6 . . . . . 7 1 . 3 114 73 Terrain Destroyed 1184 | . . 44 44 7 23 . 9 6 . . . 53 86 38 . . . 3 10 5 2 192 319 343 Melee 33 | . . . . . . . 4 6 . . . 6 6 . . . . . 7 1 . 3 . . Projectile 113 | . . . 7 7 1 . . . . . . . 2 . . . . 3 3 4 2 8 57 19 AOE 1038 | . . 44 37 . 22 . 5 . . . . 47 78 38 . . . . . . . 181 262 324 Terrain Rammed . | . . . . . . . . . . . . . . . . . . . . . . . . . Walls Destroyed . | . . . . . . . . . . . . . . . . . . . . . . . . . Machines Disabled . | . . . . . . . . . . . . . . . . . . . . . . . . . Actions | -11 -10 -10 -9 -9 -9 -8 -8 -8 -7 -7 -7 -7 -6 -6 -6 -6 -5 -5 -5 -5 -5 -5 -4 -3 --------- Run | Jun Mat Min Mat Min Exi Min Mat Gar Fac Gar Fac Gar Fac Low Low Zio Pro Fac Ext Cet Arc Hub Fac Res Total 15077 | . 174 586 583 637 1789 65 673 759 77 821 155 860 1010 495 405 1384 341 154 1029 279 607 415 994 785 Wait 1250 | . . 4 82 6 45 . 72 53 . 253 4 37 63 51 23 . . 3 55 6 306 14 132 41 Move 11472 | . 147 506 377 592 1510 56 465 555 70 426 126 694 696 397 364 1344 314 109 776 200 268 257 678 545 Hop . | . . . . . . . . . . . . . . . . . . . . . . . . . Pick Up 221 | . 3 5 29 6 34 . 21 5 1 5 5 5 20 5 5 10 5 7 9 9 . 8 11 13 Fast Attach 118 | . 1 1 8 . 6 . 9 5 . 3 1 2 20 5 1 5 2 3 3 13 6 6 4 14 Attach 146 | . . 2 6 3 18 . 6 5 2 4 1 7 31 9 2 3 . 3 4 1 1 8 10 20 Detach 36 | . . . 2 . 3 . . 1 . 1 . 1 10 3 . 2 . . 3 1 . 3 4 2 Swap 206 | . 1 6 10 1 9 . 11 13 2 11 1 11 12 1 1 9 6 3 12 6 6 26 26 22 Drop 235 | . 2 7 24 7 29 . 22 9 . 3 8 5 14 3 2 10 4 7 13 23 5 9 12 17 Fire 1012 | . 14 54 45 21 119 9 62 56 2 60 9 47 128 21 7 . 10 19 18 17 14 65 115 100 Melee 123 | . . . . . 4 . 4 12 . 30 . 19 15 . . 1 . . 29 3 . 4 . 2 Ram 2 | . . . . . . . 1 . . . . . . . . . . . . . 1 . . . Kick 7 | . 6 1 . . . . . . . . . . . . . . . . . . . . . . Crush 16 | . . . . 1 12 . . . . . . . 1 . . . . . 1 . . . 1 . Escape Stasis 111 | . . . . . . . . 45 . 25 . 32 . . . . . . . . . . . 9 Rewire 122 | . . . . . . . . . . . . . . . . . . . 106 . . 15 1 . Trap . | . . . . . . . . . . . . . . . . . . . . . . . . . Miscellaneous . | . . . . . . . . . . . . . . . . . . . . . . . . . Route ------- -11/Junkyard -10/Materials (discovered 2 exits: *Min x2) -10/Mines (discovered 2 exits: *Mat x2) -9/Materials (discovered 2 exits: *Mat / *Min) -9/Mines (discovered 3 exits: *Mat x2 / *Exi) -9/Exiles -8/Mines -8/Materials (discovered 2 exits: *Fac / Gar) -8/Garrison (discovered 2 exits: *Fac x2) -7/Factory -7/Garrison (discovered 2 exits: *Fac x2) -7/Factory (discovered 2 exits: *Fac / Gar) -7/Garrison (discovered 3 exits: *Fac x3) -6/Factory (discovered 6 exits: *Fac x4 / *Low x2) -6/Lower Caves -6/Lower Caves -6/Zion -5/Proximity Caves -5/Factory (discovered 2 exits: Fac / *Ext) -5/Extension (discovered 2 exits: *Fac / *Cet) -5/Cetus (discovered 2 exits: *Fac / [*Arc]) -5/Archives (discovered 3 exits: *Fac / *Hub x2) -5/Hub_04(d) -4/Factory -3/Research History --------- Turn | Location | Event 1 | -11/Junkyard | Discovered new exit (range 0) 1 | -11/Junkyard | Entered Materials 206 | -10/Materials | Discovered new exit (range 15) 206 | -10/Materials | Discovered new exit (range 16) 220 | -10/Materials | Central database locked down 231 | -10/Materials | Entered Mines 320 | -10/Mines | Build established: Mutant 438 | -10/Mines | Discovered new exit (range 10) 460 | -10/Mines | Assisted by bots powering up and referring to "LRC-V3" 486 | -10/Mines | Discovered new exit (range 15) 579 | -10/Mines | Learned location of Storage (-7) 630 | -10/Mines | Assembled infested the area 684 | -10/Mines | Destroyed 7 combat bots 757 | -10/Mines | Core integrity fell below 50% 905 | -10/Mines | Received a Rocket Launcher from a helpful Derelict 1007 | -10/Mines | Entered Materials 1007 | -9/Materials | Evolved 2 slots: Propulsion x1, Utility x1 1262 | -9/Materials | Identified exit to Mines 1657 | -9/Materials | Discovered new exit (range 5) 1749 | -9/Materials | Repaired Hvy. Assault Rifle 1859 | -9/Materials | Entered Mines 2167 | -9/Mines | A weapon hastily lodged in a ceiling crevice suddenly fell to the ground 2389 | -9/Mines | Discovered new exit (range 5) 2660 | -9/Mines | Learned Materials emergency access door positions 2885 | -9/Mines | Met a Derelict who couldn't figure out how to use a Trap Extractor 2992 | -9/Mines | Discovered new exit (range 9) 3318 | -9/Mines | Deemed a non-threat by the Exiles lab entrance 3320 | -9/Mines | Discovered new exit (range 5) 3330 | -9/Mines | Entered Exiles 3388 | -9/Exiles | Met 8R-AWN 3429 | -9/Exiles | Met EX-HEX 3525 | -9/Exiles | Met EX-DEC 3534 | -9/Exiles | Learned location of Zion (-6) 3696 | -9/Exiles | Discovered new exit (range 14) 3952 | -9/Exiles | Visited The Gauntlet 4578 | -9/Exiles | Met EX-BIN 4607 | -9/Exiles | Aligned with FarCom system 4609 | -9/Exiles | Given EX-Vault access code 4667 | -9/Exiles | Opened EX-Vault 4690 | -9/Exiles | Found Modified TNC 4696 | -9/Exiles | Found 0b10 Alert Chip 4706 | -9/Exiles | Found Latent Energy Streamer 4765 | -9/Exiles | Warned to stay clear of 0b10 Research branches 5526 | -9/Exiles | Attacked by the Exiles 5721 | -9/Exiles | Core integrity fell below 50% 5738 | -9/Exiles | Lost 3 parts (2n1w) 5774 | -9/Exiles | Destroyed 8R-AWN 5785 | -9/Exiles | Found Prototype Processor 5794 | -9/Exiles | Found Prototype Device 5797 | -9/Exiles | Identified AS-neutralizer No. 17b 5976 | -9/Exiles | Lost 3 parts (1n1u1w) 6481 | -9/Exiles | Destroyed EX-BIN 6516 | -9/Exiles | Destroyed EX-HEX 6572 | -9/Exiles | Destroyed EX-DEC 6605 | -9/Exiles | Found Deploy-a-Sentry 7076 | -9/Exiles | Found Prototype Processor 7165 | -9/Exiles | Build established: Scavenger-Mutant 7454 | -9/Exiles | Stole four prototypes: Deploy-a-Sentry, Modified TNC, 0b10 Alert Chip, Latent Energy Streamer 7454 | -9/Exiles | Entered Mines 7587 | -8/Mines | Discovered new exit (range 11) 7616 | -8/Mines | Entered Materials 7616 | -8/Materials | Evolved 2 slots: Propulsion x1, Utility x1 7971 | -8/Materials | Build established: Mutant 8336 | -8/Materials | Repaired Hrd. Medium Armor Plating 8380 | -8/Materials | Repaired Hvy. Assault Rifle 8437 | -8/Materials | Repaired Rnf. Fission Core 8502 | -8/Materials | Identified Exp. Core Analyzer 8582 | -8/Materials | Discovered new exit (range 15) 8669 | -8/Materials | Identified exit to Garrison 8669 | -8/Materials | Entered Garrison 8704 | -8/Garrison | Triggered checkpoint 8737 | -8/Garrison | Garrison Relay disabled 8868 | -8/Garrison | Triggered checkpoint 8912 | -8/Garrison | Triggered checkpoint 9066 | -8/Garrison | Triggered checkpoint 9255 | -8/Garrison | Build established: Scavenger-Mutant 9257 | -8/Garrison | Discovered new exit (range 12) 9375 | -8/Garrison | Garrison Relay disabled 9466 | -8/Garrison | Triggered checkpoint 9572 | -8/Garrison | Triggered checkpoint 9696 | -8/Garrison | Triggered checkpoint 9824 | -8/Garrison | Triggered checkpoint 9892 | -8/Garrison | Garrison Relay disabled 10139 | -8/Garrison | Discovered new exit (range 10) 10179 | -8/Garrison | Entered Factory 10179 | -7/Factory | Evolved 2 slots: Utility x2 10350 | -7/Factory | Identified exit to Garrison 10359 | -7/Factory | Entered Garrison 10526 | -7/Garrison | Triggered checkpoint 10566 | -7/Garrison | Garrison Relay disabled 10690 | -7/Garrison | Destroyed 7 combat bots 10718 | -7/Garrison | Triggered checkpoint 10786 | -7/Garrison | Triggered checkpoint 10817 | -7/Garrison | Triggered checkpoint 10914 | -7/Garrison | Triggered checkpoint 10941 | -7/Garrison | Garrison Relay disabled 10960 | -7/Garrison | Garrison Relay disabled 11021 | -7/Garrison | Discovered new exit (range 12) 11172 | -7/Garrison | Discovered new exit (range 10) 11214 | -7/Garrison | Triggered checkpoint 11574 | -7/Garrison | Entered Factory 11659 | -7/Factory | Discovered new exit (range 15) 11723 | -7/Factory | Garrison activated, responded to threat 11789 | -7/Factory | Identified exit to Garrison 11797 | -7/Factory | Entered Garrison 11818 | -7/Garrison | Triggered checkpoint 11849 | -7/Garrison | Garrison Relay disabled 11968 | -7/Garrison | Triggered checkpoint 11968 | -7/Garrison | Triggered checkpoint 11973 | -7/Garrison | Triggered checkpoint 12026 | -7/Garrison | Build established: Mutant 12028 | -7/Garrison | Destroyed 13 combat bots 12154 | -7/Garrison | Discovered new exit (range 12) 12176 | -7/Garrison | Triggered checkpoint 12210 | -7/Garrison | Garrison Relay disabled 12428 | -7/Garrison | Triggered checkpoint 12608 | -7/Garrison | Triggered checkpoint 12664 | -7/Garrison | Garrison Relay disabled 12698 | -7/Garrison | Discovered new exit (range 12) 12911 | -7/Garrison | Discovered new exit (range 10) 12932 | -7/Garrison | Triggered checkpoint 13001 | -7/Garrison | Rescued a captive Derelict 13034 | -7/Garrison | Attempted to access garrison exit controls, blocked by remote lockdown 13140 | -7/Garrison | Entered Factory 13140 | -6/Factory | Accompanied by 1 ally 13140 | -6/Factory | Evolved 2 slots: Power x1, Utility x1 13257 | -6/Factory | Build established: Scavenger-Mutant 13316 | -6/Factory | Discovered new exit (range 146) 13344 | -6/Factory | Discovered new exit (range 179) 13490 | -6/Factory | First assault squad dispatched 13750 | -6/Factory | Lost 4 parts (2n1u1w) 13885 | -6/Factory | Identified exit to Factory 13994 | -6/Factory | Lost 6 parts (1p1n3u1w) 14006 | -6/Factory | Destroyed 8 combat bots 14444 | -6/Factory | Found Prototype Device 14494 | -6/Factory | Cargo convoy interrupted 14501 | -6/Factory | Identified exit to Lower Caves 14863 | -6/Factory | Core integrity fell below 50% 14901 | -6/Factory | Lost 10 parts (2p5n3w) 14917 | -6/Factory | Entered Lower Caves 14918 | -6/Lower Caves | System corruption reached 10% 14973 | -6/Lower Caves | Lost 3 parts (1p2w) 15012 | -6/Lower Caves | Identified Active Sensor Suite 15025 | -6/Lower Caves | Met a Warlord Commander 15026 | -6/Lower Caves | Learned location of Warlord (-5) 15041 | -6/Lower Caves | Found Unknown Device 15692 | -6/Lower Caves | Learned location of 1 exit from Factory 15755 | -6/Lower Caves | Attracted the attention of an 0b10 checkpoint 16030 | -6/Lower Caves | Discovered new exit (range 5) 16040 | -6/Lower Caves | Identified exit to Lower Caves 16072 | -6/Lower Caves | Entered another Lower Caves area 16072 | -6/Lower Caves | Spotted 8K-11C(f) 16072 | -6/Lower Caves | Spotted XX-MMW(f) 16073 | -6/Lower Caves | Encountered a Master Thief 16073 | -6/Lower Caves | Encountered a Master Thief 16073 | -6/Lower Caves | Deploy-a-Sentry stolen by Master Thief 16074 | -6/Lower Caves | System corruption reached 30% 16089 | -6/Lower Caves | Graphene Brace stolen by Master Thief 16446 | -6/Lower Caves | Encountered a Warlord checkpoint 16906 | -6/Lower Caves | Discovered new exit (range 15) 16940 | -6/Lower Caves | Learned 4 Factory zone layouts 16979 | -6/Lower Caves | Identified exit to Zion 17019 | -6/Lower Caves | Entered Zion 17121 | -6/Zion | System corruption cleaned by Quarantine Array 17163 | -6/Zion | Given the Hacking Drone Bay 17407 | -6/Zion | Found Prototype Device 17474 | -6/Zion | Acquired unknown access codes intercepted by a Zionite 17597 | -6/Zion | Discovered new exit (range 10) 18905 | -6/Zion | Received a visual enhancement algorithm 19249 | -6/Zion | Identified Encrypted Comm Array 19251 | -6/Zion | Identified Hacking Drone Bay 19522 | -6/Zion | Imprinted 19525 | -6/Zion | Declared Zion's savior 20146 | -6/Zion | Visited the Megawrench Repair Shop 20146 | -6/Zion | Megawrench repaired 14 parts 20352 | -6/Zion | Identified exit to Proximity Caves 20354 | -6/Zion | Entered Proximity Caves 20354 | -5/Proximity Caves | Accompanied by 4 allies 20462 | -5/Proximity Caves | Learned Factory garrison access intel 20808 | -5/Proximity Caves | Attracted the attention of an 0b10 checkpoint 21120 | -5/Proximity Caves | Discovered exit to Factory (range 10) 21168 | -5/Proximity Caves | Entered Factory 21168 | -5/Factory | Accompanied by 4 allies 21168 | -5/Factory | Evolved 2 slots: Propulsion x1, Utility x1 21169 | -5/Factory | Identified exit to Factory 21171 | -5/Factory | Loaded intel: 4 garrison access locations 21365 | -5/Factory | Zion hero teleported in (AD-0RF) 21405 | -5/Factory | Identified Exp. Targeting Computer 21477 | -5/Factory | Discovered new exit (range 16) 21496 | -5/Factory | Build established: Scavenger-Skirmisher 21512 | -5/Factory | Identified exit to Extension 21517 | -5/Factory | Entered Extension 21517 | -5/Extension | Accompanied by 1 ally (AD-0RF) 21816 | -5/Extension | Rescued a captive Derelict 22095 | -5/Extension | Zion Light squad teleported in 22583 | -5/Extension | Spotted B-75 Beast 22592 | -5/Extension | Allies destroyed B-75 Beast 22624 | -5/Extension | Spotted B-75 Beast 22627 | -5/Extension | Allies destroyed B-75 Beast 22692 | -5/Extension | Rescued a captive Derelict 23013 | -5/Extension | Retrieved Zion intel report: Active Terminals 23020 | -5/Extension | Retrieved Zion intel report: Unaware Schematics 23021 | -5/Extension | Zion Defense Resupply teleported in 23036 | -5/Extension | Found Hvy. Reactive Plating 23064 | -5/Extension | Zion Hacking Resupply teleported in 23111 | -5/Extension | Terminal network hard line cut 23317 | -5/Extension | First assault squad dispatched 23443 | -5/Extension | Rescued a captive Derelict 23521 | -5/Extension | Rescued a captive Derelict 23523 | -5/Extension | Rescued a captive Derelict 23563 | -5/Extension | Rescued A7 23579 | -5/Extension | Rescued a captive Derelict 23675 | -5/Extension | Discovered exit to Factory (range 10) 23678 | -5/Extension | Discovered new exit (range 6) 23745 | -5/Extension | Entered Cetus 23745 | -5/Cetus | Accompanied by 8 allies (incl. AD-0RF, A7) 23750 | -5/Cetus | Acquired a Cetus Manufacturing Module code from A7 23777 | -5/Cetus | Spotted Cetus Guard 23777 | -5/Cetus | Spotted Cetus Guard 23779 | -5/Cetus | Spotted Cetus Guard 23781 | -5/Cetus | Spotted Cetus Guard 23785 | -5/Cetus | Allies destroyed Cetus Guard 23792 | -5/Cetus | Allies destroyed Cetus Guard 23799 | -5/Cetus | Allies destroyed Cetus Guard 23801 | -5/Cetus | Allies destroyed Cetus Guard 23860 | -5/Cetus | Found Prototype Special Weapon 23873 | -5/Cetus | Found Prototype Device 23873 | -5/Cetus | Identified Exp. Thermal Shield 23941 | -5/Cetus | Started Cetus Manufacturing Module 23966 | -5/Cetus | Manufactured an Enhanced Grunt 23969 | -5/Cetus | Escorted A7 to Cetus Mainframe 23991 | -5/Cetus | Manufactured an Enhanced Grunt 24007 | -5/Cetus | Build established: Scavenger-Mutant 24016 | -5/Cetus | Manufactured an Enhanced Grunt 24016 | -5/Cetus | Discovered new exit (range 15) 24041 | -5/Cetus | Manufactured an Enhanced Grunt 24066 | -5/Cetus | Manufactured an Enhanced Grunt 24077 | -5/Cetus | Spotted Cetus Guard 24077 | -5/Cetus | Spotted Cetus Guard 24083 | -5/Cetus | Allies destroyed Cetus Guard 24083 | -5/Cetus | Spotted Cetus Guard 24087 | -5/Cetus | Spotted Cetus Guard 24100 | -5/Cetus | Destroyed Cetus Guard 24101 | -5/Cetus | Allies destroyed Cetus Guard 24103 | -5/Cetus | Destroyed Cetus Guard 24116 | -5/Cetus | Extracted ID and sensor layout for unrecognized location from A7's data core 24121 | -5/Cetus | Found Corrupted Prototype Protection 24121 | -5/Cetus | Identified Med. Regenerative Plating 24137 | -5/Cetus | Discovered exit to Factory (range 16) 24152 | -5/Cetus | Scared off Revision 17 24169 | -5/Cetus | System corruption reached 10% 24357 | -5/Cetus | Entered Archives 24357 | -5/Archives | Accompanied by 6 allies 24474 | -5/Archives | Discovered exit to Factory (range 15) 24847 | -5/Archives | Discovered new exit (range 16) 28316 | -5/Archives | Discovered new exit (range 16) 29769 | -5/Archives | Entered Hub_04(d) 29769 | -5/Hub_04(d) | Accompanied by 3 allies 29856 | -5/Hub_04(d) | Identified AD-0RF's Magmablaster 29897 | -5/Hub_04(d) | Zion Heavy squad teleported in 30013 | -5/Hub_04(d) | Discovered exit to Factory (range 16) 30024 | -5/Hub_04(d) | Garrison activated, responded to threat 30069 | -5/Hub_04(d) | First assault squad dispatched 30271 | -5/Hub_04(d) | Zion Recon squad teleported in 30472 | -5/Hub_04(d) | Network Hub disabled 30609 | -5/Hub_04(d) | Entered Factory 30609 | -4/Factory | Evolved 2 slots: Propulsion x1, Utility x1 31359 | -4/Factory | First assault squad dispatched 31679 | -4/Factory | Retrieved Zion intel report: Active Terminals 31680 | -4/Factory | Zion Light squad teleported in 32068 | -4/Factory | High security lockdown imminent 32086 | -4/Factory | Terminal network hard line cut 32121 | -4/Factory | Destroyed 9 combat bots 32148 | -4/Factory | High security lockdown engaged 32240 | -4/Factory | Spotted B-86 Titan 32258 | -4/Factory | Discovered new exit (range 12) 32287 | -4/Factory | Entered Research 32287 | -3/Research | Evolved 2 slots: Utility x2 32382 | -3/Research | Found Prototype Processor 32382 | -3/Research | Identified Exp. Signal Interpreter 32479 | -3/Research | Retrieved Zion intel report: Emergency Access 32537 | -3/Research | First assault squad dispatched 33120 | -3/Research | Fabricated R-06 Scavenger? 33211 | -3/Research | Destroyed 9 combat bots 33263 | -3/Research | High security lockdown imminent 33343 | -3/Research | High security lockdown engaged 33356 | -3/Research | Spotted B-86 Titan 33455 | -3/Research | Build established: Scavenger-Skirmisher 33458 | -3/Research | Destroyed 7 combat bots 33513 | -3/Research | Destroyed 9 combat bots 33520 | -3/Research | Spotted Investigator 33520 | -3/Research | Scanned by Researcher 33521 | -3/Research | Spotted Striker 33521 | -3/Research | Spotted Executioner 33536 | -3/Research | System corruption reached 10% 33543 | -3/Research | Core integrity fell below 50% 33544 | -3/Research | Destroyed Striker 33546 | -3/Research | Destroyed Investigator 33577 | -3/Research | Core integrity fell below 20% 33590 | -3/Research | Destroyed 15 combat bots 33591 | -3/Research | Lost 22 parts (2p5n10u5w) 33616 | -3/Research | Destroyed by Executioner with Backup Laser VII Last Messages --------------- 33598_ Penetrated by Slug. 33598_ M-36 Artificer repairs Lgt. Antimatter Reactor. 33599_ Destroyed Prototype Ballistic Gun. 33600_ Extracted 26 energy. 33604_ Lrn. Phase Cannon destroyed. 33606_ Extracted 16 energy. 33606_ The unstable cave ceiling collapses. 33607_ Penetrated by Slug. 33609_ The unstable cave ceiling collapses. 33609_ M-36 Artificer repairs Executioner. 33610_ The unstable cave ceiling collapses. 33610_ Critical hit (Burn: +50). 33611_ System corrupted: Component data lost. 33611_ The unstable cave ceiling collapses. 33611_ M-36 Artificer fits Backup Laser VII on Executioner. 33611_ Penetrated by Slug. 33613_ ALERT: Heavy assault forces dispatched. 33614_ The unstable cave ceiling collapses. 33616_ Destroyed Exp. Targeting Computer. 33616_ Executioner system corrupted by crushing effect. Map ----- +----------------------------------------------------+ | ???????????????????????????????? ##### """ | | ???????????????+???????????????### #????# """ | | ?????????????????????????????????# ?????# """ | | ???????????????????????????????????###### """% | | ???????????????????????????#???????# # """ | | ???????????????????????????# ??????# # | | ??????????????????????????##+#####+# # | | ?????????????????????###### # #% | | ?????????????????????# + #! / | | ??????????? ????????# " """ + # # | | ?????????? * #### " """ # " # | | ??????????? / " """ # " # % | | ???????????? ??? ##"# " """ # ! # = | | ????????????? ?? ## " """ ###### | | ????????##+###"##; ### # #????# # / | | ???????# "%" # #????# # | | ???????# " ! # ########????# # | | ???????# ## #?????##???# ? ! | | ??????? #???#### ??# ? # | | ??????? ; #### # #### #### ? # | | ???????? ; ? # | | ?????????" ; ## ## %%! ?#####?? | | ??????????"" ; ! # ??????? | | ??????????" # ! # g ????? | | ???????? ; # ????? | | ??????? ; @E m # ???? | | ???????? ; #????? | | ???????? """ ## # = # #????? | | ??????????"" ???### !# ! #????? | | ??????????"???????### # # # #????? | | ?????????????????#### # # # #????? | | ????????????????# ## #????? | | ????????????????# # !%# #????? | | ????????????????# ]]] ## ] #????? | | ????????????????# ]]] # ## ??????? | | ????????????????# ]]]# #### ## ???????? | | ????????????????# # ### ## ##?????????? | | ????????????????# # ??## ##??????????? | | ????????????????# + ?? #???????????? | | ?????????????????????##?# #???????????? | | ????????????????????????#/##########?????????????? | | ????????????????????????? ???????????????????????? | | ????????????????+???+??? ????????????????????????? | | ???????????????????????? ????????????????????????? | | ?????????????????????????????????????????????????? | | ?????????????????????????????????????????????????? | | ?????????????????????????????????????????????????? | | ?????????????????????????????????????????????????? | | ?????????????????????????????????????????????????? | | ??????????????????????+??????????????????????????? | +----------------------------------------------------+ Best States ------------- Heat Dissipation 103 Coolant Potential 120 Energy Generation 47 Energy Capacity 1125 Matter Stores 300 Matter Capacity 300 Sight Range 16 Robot Scan Range 20 Terrain Scan Density 10 Jamming Range 16 Cloak Strength 3 Base Temperature (-) 200 Armor Coverage 1050 Resistance: KI 40 Resistance: TH 10 Core Shielding 30 Propulsion Shielding 33 Utility Shielding 66 Weapon Shielding 90 Phase Shifting 15 Evasion (%) 57 Targeting Accuracy 12 Armor Integrity Analysis 40 Recoil Reduction 6 Matter Filtering 50 Kinecelleration 40 Salvage Targeting 4 Offensive Hacking 14 Defensive Hacking 12 Authchip Count 3 Item Schematics ----------------- Cmb. Antigrav System | -8/Materials | Scanalyzed Lgt. Angular Momentum Engine | -6/Zion | Archive Hvy. Phase Cannon | -6/Zion | Archive Adv. Heat Sink | -6/Zion | Archive Imp. Transmission Jammer | -6/Zion | Archive Spk. Medium Treads | -6/Zion | Archive Recoil Nullifier | -6/Zion | Archive Adv. Signal Interpreter | -6/Zion | Archive Imp. Armor Integrity Analyzer | -6/Zion | Archive Centrium Wheel | -6/Zion | Archive Proton Cannon | -6/Zion | Archive Imp. Shock Absorption System | -6/Zion | Archive Wave Gun | -6/Zion | Archive Force Field | -6/Zion | Archive Adv. Sensor Array | -6/Zion | Archive Disruptor Cannon | -6/Zion | Archive Riot Gun | -6/Zion | Free Hvy. Riot Gun | -6/Zion | Free Enh. Flamer | -6/Zion | Free Robot Schematics ------------------ A-15 Conveyor | -6/Zion | Archive E-15 Imp | -6/Zion | Archive A-02 Transporter | -6/Zion | Archive X-77 Beamer | -6/Zion | Archive R-10 Processor | -5/Extension | Z-intel T-07 Excavator | -5/Extension | Z-intel R-06 Scavenger | -5/Extension | Z-intel K-01 Serf | -5/Extension | Z-intel H-66 Slayer | -5/Extension | Z-intel Fabricated ------------ R-06 Scavenger | x1 | -3/Research | Preloaded Alien Tech Used ----------------- None Achievements -------------- None Challenges ------------ None Game ------ Seed TeslaContainmentMagmablaster Manual? 0 Play Time 04:14:56 Cumulative 309.3 hours Start 2023.04.16 @ 20:29:42 End 2023.04.18 @ 19:33:00 Sessions 7 Manual Loads 0 Difficulty Rogue Special Mode None Game No. 339 Rogue 339 Adventurer 0 Explorer 0 Win Type - Total 27 Types 16/3/2/1/2/0/3/0/0 Lore% 83 Gallery% 80 Achievement% 82 Wizard Run 0 Options --------- ASCII 0 Keyboard 0 Movement Arrows Keybinds 0 Fullscreen 2 Font 24/Smallcaps Map View 76x50 Tactical HUD 1 Map Filters NONE Filters NONE Steam 1 RUN: 8ddce557-f199-4b48-8044-651eaea6582c